bitfinex/quotes_SOLUSD_20250410
["timestamp","ask_amount","ask_price","bid_price","bid_amount"]
[1744291823064,81.5,113.38,113.33,38.9097648]
[1744291823248,0.03,113.39,113.35,38.9097648]
[1744291823449,38.9097648,113.37,113.32,47.7340648]
[1744291823647,64.9097648,113.36,113.31,47.7348648]
[1744291823847,38.9097648,113.34,113.3,38.9097648]
[1744291824067,27.47244886,113.35,113.29,47.7363648]
[1744291824243,64.9097648,113.36,113.31,38.9097648]
[1744291824447,38.9097648,113.34,113.29,47.7363648]
[1744291824975,73.7313648,113.36,113.31,38.9097648]
[1744291825138,38.9097648,113.35,113.31,38.9097648]
[1744291825344,81.5,113.38,113.33,38.9097648]
[1744291825557,38.9097648,113.38,113.3,0.28432314]
[1744291825748,38.9097648,113.38,113.33,38.9097648]
[1744291826142,18.67964886,113.39,113.35,38.9097648]
[1744291826349,0.03,113.39,113.37,38.9097648]
[1744291826544,0.03,113.39,113.36,38.9097648]
[1744291826855,0.03,113.39,113.34,8.8225]
[1744291827160,0.03,113.39,113.36,38.9097648]
[1744291827359,0.03,113.39,113.38,38.9097648]
[1744291827546,0.03,113.39,113.37,38.9097648]
[1744291827741,0.03,113.39,113.38,38.9097648]
[1744291828176,0.0001,113.39,113.38,48.01388794]
[1744291828463,0.03,113.4,113.39,0.28432314]
[1744291828647,0.03,113.4,113.39,78.10385274]
[1744291828848,0.03,113.4,113.39,39.19408794]
[1744291829264,0.03,113.4,113.36,22.0527]
[1744291829469,0.03,113.4,113.37,38.9097648]
[1744291829889,26.0,113.39,113.35,38.9097648]
[1744291830189,0.03,113.4,113.38,38.9097648]
[1744291830494,0.03,113.4,113.39,38.9097648]
[1744291831060,0.03,113.4,113.39,78.10385274]
[1744291831264,0.03,113.4,113.39,47.7288648]
[1744291832069,0.03,113.41,113.39,105.5726016]
[1744291832374,0.03,113.41,113.4,78.10385274]
[1744291833173,0.03,113.41,113.4,38.9097648]
[1744291834790,0.03,113.41,113.4,78.10385274]
[1744291834989,0.03,113.43,113.41,0.28432314]
[1744291835173,0.03,113.44,113.43,0.28432314]
[1744291835374,0.03,113.46,113.44,8.8152]
[1744291835564,0.03,113.46,113.45,78.10385274]
[1744291835970,0.03,113.48,113.46,0.28432314]
[1744291836169,0.03,113.51,113.48,0.28432314]
[1744291836366,0.03,113.51,113.49,38.9097648]
[1744291836579,0.03,113.51,113.49,39.19408794]
[1744291837187,0.03,113.51,113.49,38.9097648]
[1744291837366,0.03,113.51,113.49,47.7210648]
[1744291837570,0.03,113.51,113.49,48.00538794]
[1744291838466,0.03,113.51,113.49,38.9097648]
[1744291838706,0.03,113.51,113.49,48.00538794]
[1744291839280,0.03,113.51,113.49,66.6550368]
[1744291839485,0.0001,113.51,113.5,39.19408794]
[1744291839886,0.03,113.56,113.5,96.7535016]
[1744291840093,0.03,113.56,113.55,38.9097648]
[1744291840267,18.67964886,113.56,113.52,38.9097648]
[1744291840464,38.9097648,113.55,113.51,38.9097648]
[1744291840883,38.9097648,113.53,113.47,8.8129]
[1744291841092,18.64964886,113.51,113.46,8.8136]
[1744291841269,38.9097648,113.5,113.44,8.8152]
[1744291841479,26.0,113.5,113.46,8.8136]
[1744291841685,26.0,113.5,113.43,32.2598]
[1744291841686,64.9097648,113.5,113.44,8.8152]
[1744291841999,26.0,113.5,113.46,38.9097648]
[1744291842183,57.55941366,113.52,113.48,38.9097648]
[1744291842389,57.55941366,113.5,113.44,8.8152]
[1744291842567,38.9097648,113.48,113.43,47.7253648]
[1744291842773,26.0,113.49,113.46,38.9097648]
[1744291843092,38.9097648,113.51,113.46,38.9097648]
[1744291843276,38.4314,113.53,113.49,38.9097648]
[1744291843277,16.4108,113.53,113.49,38.9097648]
[1744291843891,0.03,113.56,113.52,38.9097648]
[1744291844192,8.8362,113.56,113.52,38.9097648]
[1744291844393,0.03,113.56,113.53,38.9097648]
[1744291844595,26.0,113.54,113.53,38.9097648]
[1744291844776,26.0,113.54,113.52,38.9097648]
[1744291844978,26.0,113.54,113.51,38.9097648]
[1744291845183,38.9097648,113.53,113.49,38.9097648]
[1744291845676,8.8081,113.54,113.49,38.9097648]
[1744291845995,38.9097648,113.53,113.47,8.8129]
[1744291846198,8.8081,113.54,113.49,38.9097648]
[1744291846375,38.9097648,113.53,113.49,38.9097648]
[1744291846890,38.9097648,113.51,113.46,8.8136]
[1744291847098,38.9097648,113.51,113.46,47.7233648]
[1744291847285,38.9097648,113.5,113.45,38.9097648]
[1744291847599,26.0,113.5,113.44,41.0525]
[1744291847807,47.7195648,113.51,113.46,47.7228648]
[1744291848095,38.9097648,113.49,113.45,8.8141]
[1744291848294,38.9097648,113.49,113.45,47.7238648]
[1744291848796,8.8098,113.51,113.45,47.7238648]
[1744291848995,38.9097648,113.49,113.44,38.9097648]
[1744291849375,8.8098,113.51,113.46,38.9097648]
[1744291849577,58.16412642,113.5,113.45,58.16412642]
[1744291850275,8.8098,113.51,113.47,58.16412642]
[1744291850479,26.0,113.49,113.47,58.16412642]
[1744291850691,26.0,113.49,113.43,8.816]
[1744291851005,58.16412642,113.46,113.41,66.98162642]
[1744291851181,58.16412642,113.46,113.42,58.16412642]
[1744291851383,8.8132,113.47,113.43,58.16412642]
[1744291851580,92.97732642,113.47,113.42,58.16412642]
[1744291851978,26.0,113.47,113.42,58.16412642]
[1744291852181,26.0,113.47,113.44,58.16412642]
[1744291852680,26.0,113.47,113.45,58.16412642]
[1744291853193,26.0,113.47,113.45,8.8143]
[1744291853390,26.0,113.47,113.42,0.28432314]
[1744291853590,26.0,113.47,113.44,58.16412642]
[1744291853790,66.08202642,113.5,113.46,58.16412642]
[1744291854087,26.0,113.47,113.45,58.16412642]
[1744291854905,26.0,113.47,113.44,58.16412642]
[1744291855082,26.0,113.47,113.45,58.16412642]
[1744291855898,26.0,113.47,113.43,66.97982642]
[1744291856105,58.16412642,113.48,113.44,58.16412642]
[1744291856405,58.16412642,113.49,113.44,58.16412642]
[1744291856612,7.9179,113.5,113.45,58.16412642]
[1744291856911,59.74492642,113.5,113.43,8.8157]
[1744291857083,1.5808,113.5,113.47,66.97702642]
[1744291857284,8.81,113.51,113.47,66.97702642]
[1744291857503,68.36412642,113.52,113.47,66.97702642]
[1744291857504,66.97352642,113.52,113.47,66.97702642]
[1744291857693,73.56582642,113.53,113.47,8.8129]
[1744291858089,1.5579,113.54,113.5,58.16412642]
[1744291858292,19.0366,113.56,113.51,58.16412642]
[1744291858493,77.20072642,113.56,113.51,58.16412642]
[1744291858701,8.8366,113.56,113.53,58.16412642]
[1744291858908,0.03,113.56,113.51,0.28432314]
[1744291859119,0.03,113.55,113.52,58.16412642]
[1744291859291,0.03,113.55,113.54,58.16412642]
[1744291861186,0.03,113.55,113.5,74.8897]
[1744291861187,0.03,113.55,113.5,22.0264]
[1744291861389,0.03,113.55,113.49,18.933972]
[1744291861589,0.03,113.55,113.51,58.16412642]
[1744291861821,0.03,113.55,113.5,66.97462642]
[1744291861822,58.19412642,113.55,113.5,66.97462642]
[1744291862110,0.03,113.55,113.5,8.8105]
[1744291862307,0.03,113.55,113.51,58.16412642]
[1744291862484,58.19412642,113.55,113.51,58.16412642]
[1744291862688,0.03,113.55,113.52,66.97312642]
[1744291862895,0.03,113.55,113.54,58.16412642]
[1744291863114,0.03,113.56,113.55,0.28432314]
[1744291863292,0.0001,113.56,113.55,135.26222484]
[1744291863497,0.03,113.61,113.55,135.26222484]
[1744291863703,0.03,113.61,113.6,76.81377528]
[1744291864009,0.03,113.61,113.6,68.64844956]
[1744291864203,0.03,113.61,113.6,58.16412642]
[1744291865491,58.19412642,113.61,113.54,6.358]
[1744291865691,58.19412642,113.61,113.54,8.8071]
[1744291865692,58.16412642,113.58,113.54,8.8071]
[1744291866016,58.16412642,113.56,113.52,66.97312642]
[1744291866204,0.03,113.61,113.55,58.16412642]
[1744291866205,26.0,113.59,113.55,58.16412642]
[1744291866393,58.16412642,113.6,113.55,58.16412642]
[1744291866601,18.67964886,113.61,113.56,58.16412642]
[1744291866807,18.67964886,113.61,113.55,58.16412642]
[1744291866808,58.16412642,113.59,113.55,58.16412642]
[1744291867013,8.8032,113.6,113.49,8.8113]
[1744291867014,9.08752314,113.6,113.49,8.8113]
[1744291867205,58.16412642,113.53,113.49,8.8113]
[1744291867404,58.16412642,113.53,113.48,58.16412642]
[1744291867705,26.0,113.52,113.46,66.97772642]
[1744291868029,58.16412642,113.53,113.48,58.16412642]
[1744291868198,15.34539738,113.53,113.48,58.16412642]
[1744291868401,58.16412642,113.52,113.46,30.8477]
[1744291868595,58.16412642,113.53,113.48,58.16412642]
[1744291868815,58.16412642,113.52,113.48,66.97612642]
[1744291869019,58.16412642,113.51,113.47,8.8125]
[1744291869224,58.16412642,113.52,113.47,66.97662642]
[1744291869424,81.5,113.55,113.5,58.16412642]
[1744291869726,58.16412642,113.55,113.51,58.16412642]
[1744291869903,58.16412642,113.55,113.49,0.28432314]
[1744291870104,58.16412642,113.55,113.5,58.16412642]
[1744291870523,27.45504886,113.57,113.51,58.16412642]
[1744291870723,58.16412642,113.57,113.53,66.97232642]
[1744291870925,58.16412642,113.56,113.52,58.16412642]
[1744291871134,58.16412642,113.55,113.5,66.97462642]
[1744291871317,58.16412642,113.54,113.49,58.16412642]
[1744291871513,58.16412642,113.55,113.51,58.16412642]
[1744291872013,58.16412642,113.55,113.5,58.16412642]
[1744291872218,58.16412642,113.55,113.51,58.16412642]
[1744291872529,58.16412642,113.52,113.48,66.97622642]
[1744291872724,58.16412642,113.51,113.48,8.8121]
[1744291872913,71.56164537,113.53,113.48,66.97622642]
[1744291873231,71.56164537,113.53,113.45,18.996972]
[1744291873232,58.16412642,113.52,113.45,0.063]
[1744291873535,58.16412642,113.48,113.45,0.063]
[1744291873704,58.16412642,113.46,113.45,0.063]
[1744291874127,134.9779017,113.46,113.45,0.063]
[1744291874330,135.26222484,113.46,113.45,0.063]
[1744291874504,58.16412642,113.41,113.4,0.063]
[1744291875031,66.98162642,113.41,113.4,0.063]
[1744291875235,100.14964886,113.45,113.4,0.063]
[1744291875539,26.0,113.42,113.4,0.063]
[1744291876214,58.16412642,113.41,113.4,0.063]
[1744291877134,26.0,113.41,113.4,0.063]
[1744291877433,13.39751895,113.44,113.4,58.22712642]
[1744291877637,58.16412642,113.43,113.4,0.063]
[1744291877866,13.39751895,113.44,113.4,58.22712642]
[1744291878142,58.16412642,113.41,113.4,0.063]
[1744291878512,135.26222484,113.41,113.4,0.063]
[1744291879013,85.91559842,113.41,113.4,0.063]
[1744291879429,26.0,113.37,113.35,0.063]
[1744291879654,58.16412642,113.36,113.35,0.063]
[1744291879830,84.16412642,113.37,113.35,0.063]
[1744291880247,58.16412642,113.36,113.35,0.063]
[1744291881163,26.0,113.37,113.35,0.063]
[1744291881164,92.98482642,113.37,113.35,0.063]
[1744291881455,58.16412642,113.36,113.35,0.063]
[1744291881758,77.09809842,113.36,113.35,0.063]
[1744291882561,26.0,113.32,113.28,0.063]
[1744291882729,58.16412642,113.31,113.28,0.063]
[1744291882930,84.16412642,113.32,113.28,0.063]
[1744291883158,27.47494886,113.31,113.3,0.063]
[1744291883334,85.63907528,113.31,113.3,0.063]
[1744291883755,85.92339842,113.31,113.3,0.063]
[1744291884057,85.92339842,113.31,113.28,0.063]
[1744291884058,26.0,113.29,113.28,0.063]
[1744291884261,161.26222484,113.29,113.28,0.063]
[1744291884465,26.0,113.25,113.2,0.063]
[1744291884666,26.0,113.24,113.2,0.063]
[1744291884841,58.16412642,113.22,113.2,0.063]
[1744291885046,26.0,113.21,113.2,0.063]
[1744291885452,34.831,113.24,113.2,0.063]
[1744291885644,26.0,113.23,113.2,58.22712642]
[1744291885971,58.16412642,113.21,113.2,0.063]
[1744291886267,26.0,113.18,113.14,0.063]
[1744291886450,84.44844956,113.18,113.14,0.063]
[1744291886645,103.09809842,113.18,113.17,0.0001]
[1744291886850,26.0,113.18,113.17,0.0001]
[1744291887050,81.5,113.2,113.17,0.0001]
[1744291887051,58.16412642,113.2,113.17,0.0001]
[1744291887473,58.16412642,113.19,113.17,0.0001]
[1744291887656,58.16412642,113.18,113.17,0.0001]
[1744291887966,26.0,113.15,113.14,0.063]
[1744291888167,102.81377528,113.15,113.14,0.063]
[1744291888336,113.29809842,113.15,113.14,0.063]
[1744291888537,194.79809842,113.15,113.14,0.063]
[1744291888754,18.933972,113.14,113.06,0.088449]
[1744291888968,84.16412642,113.11,113.06,0.088449]
[1744291889135,58.16412642,113.09,113.06,0.088449]
[1744291889337,26.0,113.1,113.06,58.25257542]
[1744291889574,58.16412642,113.09,113.06,0.088449]
[1744291889762,84.16412642,113.07,113.06,0.088449]
[1744291889944,26.0,113.07,113.06,0.088449]
[1744291890267,102.81377528,113.07,113.06,0.088449]
[1744291890443,103.09809842,113.07,113.06,0.088449]
[1744291890940,26.0,113.03,112.94,43.5677941]
[1744291891137,58.16412642,113.0,112.95,28.4034]
[1744291891354,84.16412642,112.96,112.95,19.55]
[1744291891543,84.16412642,112.96,112.91,8.8559]
[1744291891961,58.16412642,112.94,112.87,31.009]
[1744291892146,0.28432314,112.96,112.89,19.56]
[1744291892462,18.933972,112.96,112.89,19.56]
[1744291892641,26.0,112.92,112.89,19.56]
[1744291892842,58.16412642,112.9,112.89,19.56]
[1744291893069,81.5,112.95,112.89,77.72412642]
[1744291893273,18.64964886,112.94,112.87,8.8597]
[1744291893447,58.16412642,112.94,112.89,58.16412642]
[1744291893767,58.16412642,112.94,112.87,8.8597]
[1744291893949,18.64964886,112.94,112.88,58.16412642]
[1744291894148,58.16412642,112.94,112.89,58.16412642]
[1744291894368,81.5,112.95,112.91,58.16412642]
[1744291894547,76.81377528,112.96,112.91,58.16412642]
[1744291894742,58.16412642,112.95,112.88,0.28432314]
[1744291894955,76.81377528,112.96,112.91,58.16412642]
[1744291895151,68.78412642,112.97,112.92,67.01992642]
[1744291895359,58.16412642,112.96,112.91,67.02042642]
[1744291895552,81.5,112.99,112.95,58.16412642]
[1744291895865,11.0,113.02,112.93,18.933972]
[1744291896042,58.16412642,113.01,112.96,58.16412642]
[1744291896241,18.64964886,113.01,112.96,58.16412642]
[1744291896458,26.0,112.99,112.96,58.16412642]
[1744291896661,26.0,112.99,112.93,0.28432314]
[1744291896840,58.16412642,113.0,112.96,58.16412642]
[1744291897365,8.8456,113.05,112.99,58.16412642]
[1744291897555,58.16412642,113.04,112.96,8.8524]
[1744291897756,58.16412642,113.01,112.96,67.01652642]
[1744291897972,26.0,113.0,112.97,58.16412642]
[1744291898146,26.0,113.0,112.96,67.01652642]
[1744291898346,58.16412642,112.97,112.91,8.8566]
[1744291898646,58.16412642,112.98,112.93,58.16412642]
[1744291898952,58.16412642,112.98,112.94,58.16412642]
[1744291899152,118.5,113.0,112.96,67.01672642]
[1744291899153,26.0,113.0,112.96,67.01672642]
[1744291899356,26.0,113.0,112.96,8.8526]
[1744291899665,26.0,113.0,112.97,58.16412642]
[1744291899975,58.16412642,113.0,112.96,58.16412642]
[1744291900174,90.3474,113.03,112.95,58.16412642]
[1744291900349,90.3474,113.03,112.92,67.16208799]
[1744291900350,58.16412642,113.01,112.94,0.14216157]
[1744291900546,81.5,113.03,112.99,58.16412642]
[1744291900771,1.5106,113.08,112.97,58.16412642]
[1744291900772,58.16412642,113.02,112.97,58.16412642]
[1744291900975,58.16412642,113.01,112.96,58.16412642]
[1744291901157,26.0,113.01,112.98,67.01482642]
[1744291901466,26.0,113.01,112.97,67.01572642]
[1744291901947,26.0,113.02,113.0,58.16412642]
[1744291902149,58.16412642,113.05,112.98,0.28432314]
[1744291902353,26.0,113.03,113.0,58.16412642]
[1744291902569,108.99374886,113.07,113.0,58.16412642]
[1744291902785,58.16412642,113.06,112.98,58.44844956]
[1744291903075,18.64964886,113.07,113.02,58.16412642]
[1744291903377,58.16412642,113.05,112.99,22.124]
[1744291903585,58.16412642,113.03,112.99,58.16412642]
[1744291903756,58.16412642,113.03,112.98,8.8511]
[1744291903957,84.16412642,113.04,113.0,58.16412642]
[1744291904169,58.16412642,113.02,112.97,8.8516]
[1744291904354,84.16412642,113.0,112.96,8.8523]
[1744291904569,26.0,113.0,112.96,58.16412642]
[1744291904874,18.64964886,113.01,112.97,58.16412642]
[1744291905165,58.16412642,113.02,112.97,67.01602642]
[1744291905469,58.16412642,112.99,112.93,8.855]
[1744291905664,26.0,113.0,112.96,58.16412642]
[1744291905869,58.16412642,112.99,112.95,58.16412642]
[1744291906065,84.16412642,112.99,112.95,58.16412642]
[1744291906262,26.0,112.99,112.94,58.16412642]
[1744291906458,58.16412642,112.99,112.94,58.16412642]
[1744291906676,26.0,112.95,112.91,58.16412642]
[1744291906866,84.16412642,112.94,112.89,67.02222642]
[1744291907062,58.16412642,112.93,112.89,8.8581]
[1744291907270,58.16412642,112.92,112.88,58.16412642]
[1744291907466,58.16412642,112.92,112.87,8.8591]
[1744291907467,58.16412642,112.92,112.87,67.02322642]
[1744291907768,84.16412642,112.9,112.86,58.16412642]
[1744291907964,26.0,112.9,112.84,8.9247]
[1744291908271,58.16412642,112.88,112.84,0.063]
[1744291908474,58.16412642,112.86,112.84,0.063]
[1744291908677,58.16412642,112.85,112.84,0.063]
[1744291909256,58.16412642,112.85,112.75,42.9427]
[1744291909257,26.0,112.81,112.75,20.77]
[1744291909577,18.64964886,112.77,112.65,31.0681]
[1744291909752,18.64964886,112.77,112.66,20.79]
[1744291909753,26.0,112.71,112.66,20.79]
[1744291910078,18.64964886,112.77,112.66,20.79]
[1744291910079,19.14964886,112.76,112.66,20.79]
[1744291910253,0.28432314,112.72,112.66,20.79]
[1744291910456,26.0,112.71,112.66,20.79]
[1744291910760,0.28432314,112.7,112.66,20.79]
[1744291910959,26.0,112.71,112.66,20.79]
[1744291911150,18.64964886,112.72,112.66,20.79]
[1744291911151,26.0,112.69,112.66,20.79]
[1744291911483,26.0,112.67,112.57,22.2073]
[1744291911670,26.0,112.67,112.58,8.8825]
[1744291911870,0.28432314,112.7,112.58,8.8825]
[1744291912187,18.933972,112.71,112.58,8.8825]
[1744291912358,26.0,112.68,112.58,8.8825]
[1744291912559,26.0,112.68,112.59,0.14216157]
[1744291912788,26.0,112.67,112.52,20.0]
[1744291913086,0.5,112.61,112.5,20.0]
[1744291913257,26.0,112.58,112.49,8.8893]
[1744291913694,18.64964886,112.57,112.49,8.8893]
[1744291913868,23.5892385,112.66,112.49,8.8893]
[1744291914188,18.933972,112.61,112.49,9.3893]
[1744291914391,0.28432314,112.61,112.53,0.5]
[1744291914571,0.28432314,112.61,112.52,26.5]
[1744291914759,18.64964886,112.65,112.51,0.5]
[1744291915091,18.64964886,112.65,112.49,8.8893]
[1744291915092,0.28432314,112.64,112.49,8.8893]
[1744291915294,26.0,112.61,112.51,0.14216157]
[1744291915454,26.0,112.61,112.51,0.28432314]
[1744291915882,0.28432314,112.61,112.49,8.8893]
[1744291916270,26.0,112.58,112.45,22.2306]
[1744291916474,26.0,112.57,112.44,20.0]
[1744291916659,45.14964886,112.57,112.43,8.8944]
[1744291916861,0.28432314,112.61,112.44,58.16412642]
[1744291916862,26.0,112.53,112.44,58.16412642]
[1744291917062,18.933972,112.52,112.46,26.0]
[1744291917362,0.28432314,112.56,112.5,26.0]
[1744291917564,44.64964886,112.57,112.5,26.0]
[1744291917780,18.64964886,112.57,112.5,26.0]
[1744291918084,90.3791,112.63,112.51,18.933972]
[1744291918261,26.0,112.55,112.48,0.28432314]
[1744291918460,0.28432314,112.57,112.45,8.8922]
[1744291918758,26.0,112.57,112.49,0.28432314]
[1744291918978,81.5,112.6,112.56,58.16412642]
[1744291919277,81.5,112.6,112.51,18.933972]
[1744291919278,47.26904123,112.62,112.54,58.16412642]
[1744291919471,47.26904123,112.62,112.51,9.17212314]
[1744291919669,26.0,112.58,112.5,0.28432314]
[1744291919980,26.0,112.59,112.54,58.16412642]
[1744291920179,58.16412642,112.56,112.47,8.8909]
[1744291920376,18.64964886,112.58,112.47,8.8909]
[1744291920572,0.28432314,112.57,112.46,0.063]
[1744291920773,18.64964886,112.56,112.49,58.16412642]
[1744291921086,18.64964886,112.56,112.46,8.9549]
[1744291921379,26.0,112.57,112.46,0.063]
[1744291921579,8.8786,112.63,112.56,58.16412642]
[1744291921773,8.8786,112.63,112.55,58.16412642]
[1744291921972,47.25154415,112.66,112.56,58.16412642]
[1744291922179,47.25154415,112.66,112.62,58.16412642]
[1744291922480,47.25154415,112.66,112.57,18.933972]
[1744291922903,56.12774415,112.66,112.54,18.64964886]
[1744291923188,58.16412642,112.61,112.55,0.28432314]
[1744291923361,81.5,112.65,112.59,58.16412642]
[1744291923678,26.0,112.61,112.49,0.5]
[1744291923881,100.14964886,112.64,112.53,15.2659]
[1744291924079,58.16412642,112.63,112.54,18.79181043]
[1744291924281,18.64964886,112.63,112.54,0.28432314]
[1744291924471,81.5,112.64,112.57,0.28432314]
[1744291924671,47.25154415,112.66,112.55,0.28432314]
[1744291924882,47.25154415,112.66,112.58,0.28432314]
[1744291925270,47.25154415,112.66,112.59,8.8815]
[1744291925469,47.25154415,112.66,112.62,58.16412642]
[1744291925665,47.25154415,112.66,112.6,18.933972]
[1744291925979,47.25154415,112.66,112.65,58.16412642]
[1744291926188,47.25154415,112.66,112.65,58.44844956]
[1744291926368,22.6698,112.77,112.63,18.933972]
[1744291926369,81.5,112.77,112.63,18.64964886]
[1744291926566,81.5,112.77,112.66,18.64964886]
[1744291926780,8.8644,112.81,112.74,58.16412642]
[1744291926977,8.8644,112.81,112.69,18.64964886]
[1744291927183,58.16412642,112.8,112.71,58.16412642]
[1744291927379,26.0,112.78,112.72,8.8715]
[1744291927598,8.8638,112.82,112.72,8.8715]
[1744291927894,26.0,112.79,112.75,58.16412642]
[1744291928197,58.16412642,112.8,112.72,8.8715]
[1744291928493,90.3632,112.83,112.7,0.28432314]
[1744291928795,26.0,112.8,112.77,58.16412642]
[1744291929090,58.16412642,112.86,112.79,58.16412642]
[1744291929091,58.16412642,112.84,112.79,58.16412642]
[1744291929314,26.0,112.83,112.8,58.16412642]
[1744291929613,8.8589,112.88,112.78,0.28432314]
[1744291929913,3.09088636,112.87,112.83,58.16412642]
[1744291930085,58.16412642,112.84,112.8,58.16412642]
[1744291930281,26.0,112.83,112.79,58.16412642]
[1744291930496,58.16412642,112.82,112.74,6.1722]
[1744291930685,29.09088636,112.83,112.77,58.16412642]
[1744291931000,6.19635027,112.82,112.68,2.0738]
[1744291931179,58.16412642,112.77,112.69,8.8739]
[1744291931385,6.19635027,112.76,112.71,0.28432314]
[1744291931591,6.19635027,112.76,112.69,8.8739]
[1744291931794,58.16412642,112.74,112.67,15.1194]
[1744291931992,18.64964886,112.75,112.67,58.16412642]
[1744291932303,58.16412642,112.71,112.63,8.8786]
[1744291932506,6.19635027,112.73,112.7,58.16412642]
[1744291932700,6.19635027,112.73,112.72,58.44844956]
[1744291932900,8.8631,112.83,112.73,0.28432314]
[1744291933207,34.8623,112.84,112.79,58.16412642]
[1744291933412,8.8623,112.84,112.79,58.16412642]
[1744291933597,6.23762063,112.83,112.81,53.73039115]
[1744291933908,6.23762063,112.82,112.76,8.8681]
[1744291934326,6.23762063,112.82,112.78,58.16412642]
[1744291934496,6.23762063,112.82,112.72,0.28432314]
[1744291934816,84.16412642,112.78,112.73,58.16412642]
[1744291935023,58.16412642,112.8,112.73,58.16412642]
[1744291935187,6.23762063,112.81,112.74,76.81377528]
[1744291935386,6.23762063,112.81,112.8,58.16412642]
[1744291936017,81.5,112.85,112.79,58.16412642]
[1744291936314,0.03,112.87,112.81,58.16412642]
[1744291936515,0.03,112.87,112.78,0.28432314]
[1744291936705,26.0,112.85,112.82,58.16412642]
[1744291936907,0.03,112.87,112.84,58.16412642]
[1744291937301,0.03,112.87,112.77,99.84964886]
[1744291937498,58.16412642,112.85,112.78,0.28432314]
[1744291937825,0.03,112.87,112.82,58.16412642]
[1744291938025,0.03,112.87,112.84,58.16412642]
[1744291938329,0.03,112.87,112.83,0.28432314]
[1744291938502,0.03,112.87,112.86,58.16412642]
[1744291938692,0.03,112.87,112.86,0.28432314]
[1744291938897,0.03,112.87,112.86,116.61257598]
[1744291939121,0.0001,112.87,112.86,18.933972]
[1744291939328,68.01858879,112.93,112.88,18.933972]
[1744291939493,68.01858879,112.93,112.92,116.32825284]
[1744291939833,91.9092,113.01,112.92,116.32825284]
[1744291940124,6.26777138,112.93,112.92,58.44844956]
[1744291940322,6.26777138,112.93,112.92,77.09809842]
[1744291940530,0.03,113.01,112.93,0.28432314]
[1744291940821,0.03,113.01,112.93,18.933972]
[1744291941197,0.03,113.01,112.97,58.16412642]
[1744291941420,0.03,112.99,112.97,58.16412642]
[1744291941608,0.03,112.99,112.93,49.926272]
[1744291942020,0.03,112.99,112.93,9.13902314]
[1744291942211,58.19412642,112.99,112.95,58.16412642]
[1744291942516,0.03,112.99,112.95,58.16412642]
[1744291942818,0.03,112.99,112.98,58.16412642]
[1744291943504,0.03,112.99,112.95,8.8534]
[1744291943703,58.16412642,112.98,112.91,8.8566]
[1744291944017,26.0,112.95,112.88,8.8589]
[1744291944222,26.0,112.95,112.91,58.16412642]
[1744291944422,26.0,112.95,112.88,31.0063]
[1744291944604,58.16412642,112.96,112.88,31.0063]
[1744291944808,58.16412642,112.96,112.92,58.16412642]
[1744291945120,44.64964886,112.97,112.88,8.8589]
[1744291945434,44.64964886,112.97,112.89,58.16412642]
[1744291945435,58.16412642,112.93,112.89,58.16412642]
[1744291945624,58.16412642,112.94,112.89,58.16412642]
[1744291945822,15.13471152,112.95,112.87,8.8597]
[1744291946122,58.16412642,112.92,112.88,58.16412642]
[1744291946318,58.16412642,112.92,112.87,58.16412642]
[1744291946505,58.16412642,112.91,112.85,8.8613]
[1744291946707,58.16412642,112.91,112.82,58.16412642]
[1744291946708,58.16412642,112.87,112.82,58.16412642]
[1744291947021,58.16412642,112.87,112.79,22.1647]
[1744291947199,26.0,112.89,112.82,58.16412642]
[1744291947401,6.28566559,112.88,112.8,8.8649]
[1744291947614,58.16412642,112.86,112.79,8.8659]
[1744291947818,15.14476559,112.88,112.83,58.16412642]
[1744291948022,73.30889201,112.88,112.83,58.16412642]
[1744291948426,6.28566559,112.87,112.85,58.16412642]
[1744291948629,6.28566559,112.87,112.81,0.28432314]
[1744291949015,6.28566559,112.87,112.85,58.16412642]
[1744291949405,6.28566559,112.89,112.82,8.8636]
[1744291949630,6.28566559,112.89,112.87,58.16412642]
[1744291949836,6.28566559,112.89,112.88,58.16412642]